bitfinex/quotes_SOLUSD_20220104
["timestamp","ask_amount","ask_price","bid_price","bid_amount"]
[1641270922491,35.58229007,168.12,168.1,3.1600806]
[1641270922687,11.37569007,168.12,168.1,3.1600806]
[1641270923711,11.63569007,168.12,168.1,3.1600806]
[1641270931416,11.37569007,168.12,168.1,3.1600806]
[1641270932819,11.63569007,168.12,168.1,3.1600806]
[1641270934021,13.06238375,168.12,168.1,3.1600806]
[1641270938024,11.63569007,168.12,168.1,3.1600806]
[1641270943531,9.32,168.12,168.1,3.1600806]
[1641270943733,9.06,168.12,168.1,3.1600806]
[1641270944531,2.76733016,168.11,168.1,3.1600806]
[1641270944736,11.32733016,168.11,168.1,3.1600806]
[1641270944932,11.82733016,168.11,168.1,3.1600806]
[1641270945533,12.08733016,168.11,168.1,3.1600806]
[1641270946133,9.32,168.11,168.1,3.1600806]
[1641270952943,10.74669368,168.11,168.1,3.1600806]
[1641270953543,16.95919591,168.11,168.1,3.1600806]
[1641270953941,15.53250223,168.11,168.1,3.1600806]
[1641270954343,9.32,168.11,168.1,3.1600806]
[1641270955542,9.06,168.11,168.1,3.1600806]
[1641270957544,9.32,168.11,168.1,3.1600806]
[1641270960548,57.32,168.11,168.1,3.1600806]
[1641270960748,58.74669368,168.11,168.1,3.1600806]
[1641270963150,57.32,168.11,168.1,3.1600806]
[1641270964355,58.74669368,168.11,168.1,3.1600806]
[1641270964677,45.0,168.1,167.86,8.56]
[1641270964876,107.0,168.07,167.96,1.324]
[1641270965076,35.74894134,168.06,167.96,1.324]
[1641270965276,29.09328094,168.05,167.96,1.324]
[1641270965479,33.4572,168.04,167.96,1.324]
[1641270965677,33.4572,168.04,167.96,0.824]
[1641270965877,34.2172,168.04,167.96,0.824]
[1641270966078,1.2874,168.03,167.96,0.824]
[1641270966279,8.56,168.02,167.96,0.824]
[1641270966478,9.32,168.02,167.96,0.824]
[1641270969383,8.82,168.02,167.96,0.824]
[1641270970882,9.32,168.02,167.96,0.824]
[1641270971382,9.06,168.02,167.96,0.824]
[1641270972582,9.06,168.02,168.0,1.2050831]
[1641270972783,9.32,168.02,168.0,3.1596408]
[1641270977388,9.06,168.02,168.0,3.1596408]
[1641270977788,9.06,168.02,168.01,6.06439992]
[1641270977989,9.06,168.02,168.0,3.1596408]
[1641270978795,9.32,168.02,168.0,3.1596408]
[1641270980497,9.32,168.02,168.01,6.06439992]
[1641270980897,9.32,168.02,168.0,3.1596408]
[1641270981798,9.32,168.02,168.01,6.06439992]
[1641270983602,9.06,168.02,168.01,6.06439992]
[1641270983799,8.56,168.02,168.01,6.06439992]
[1641270986701,8.56,168.02,168.01,11.69139992]
[1641270988503,8.56,168.02,168.01,6.06439992]
[1641270988703,8.56,168.02,168.0,3.1596408]
[1641270988907,8.56,168.02,168.0,3.4196408]
[1641270989104,8.56,168.02,168.01,6.06439992]
[1641270993536,8.56,168.02,168.01,6.32439992]
[1641270993937,8.56,168.05,168.01,6.32439992]
[1641270998443,8.56,168.05,168.01,3.29219997]
[1641271000342,8.56,168.05,168.01,0.26]
[1641271000645,8.56,168.05,168.0,3.4196408]
[1641271006147,8.56,168.05,168.0,3.1596408]
[1641271006346,9.06,168.05,168.0,3.1596408]
[1641271006953,8.56,168.05,168.0,3.1596408]
[1641271007148,9.06,168.05,168.0,3.1596408]
[1641271007351,8.56,168.05,168.0,3.1596408]
[1641271007549,8.56,168.05,168.0,3.4196408]
[1641271008349,9.06,168.05,168.0,3.4196408]
[1641271010753,8.56,168.05,168.0,3.4196408]
[1641271012855,8.56,168.05,168.0,3.1596408]
[1641271014257,8.56,168.05,168.0,3.4196408]
[1641271017960,8.56,168.05,168.0,3.1596408]
[1641271019464,8.56,168.05,168.0,3.4196408]
[1641271019866,8.56,168.05,168.0,3.1596408]
[1641271021070,8.56,168.05,168.0,3.4196408]
[1641271021669,6.3537213,168.05,168.0,3.4196408]
[1641271022673,6.8537213,168.05,168.0,3.4196408]
[1641271023071,6.3537213,168.05,168.0,3.4196408]
[1641271036908,27.71864716,168.07,168.0,3.4196408]
[1641271037108,28.21864716,168.07,168.0,3.4196408]
[1641271039214,28.21864716,168.07,168.0,3.1596408]
[1641271039413,8.56,168.06,168.0,3.1596408]
[1641271039814,9.06,168.06,168.0,3.1596408]
[1641271040614,9.06,168.06,168.0,3.4196408]
[1641271042116,9.06,168.06,168.0,1.4650831]
[1641271047849,9.06,168.06,168.0,1.2050831]
[1641271048049,9.32,168.06,168.0,1.2050831]
[1641271048448,23.4517,168.05,168.0,1.2050831]
[1641271048848,23.9517,168.05,168.0,1.2050831]
[1641271049249,25.2057,168.05,168.0,1.2050831]
[1641271050051,25.2057,168.05,168.0,1.4650831]
[1641271056955,34.0257,168.05,168.0,1.2050831]
[1641271058357,33.7657,168.05,168.0,1.2050831]
[1641271059758,34.0257,168.05,168.0,1.2050831]
[1641271060159,114.14221,168.04,168.0,8.31e-05]
[1641271060362,8.56,168.03,168.0,8.31e-05]
[1641271060560,7.14221,168.02,168.0,8.31e-05]
[1641271060762,11.33601813,168.01,168.0,8.31e-05]
[1641271060961,37.10301813,168.01,168.0,8.31e-05]
[1641271061162,65.92230229,168.01,168.0,8.31e-05]
[1641271062468,34.327,168.01,168.0,8.31e-05]
[1641271064364,34.067,168.01,168.0,8.31e-05]
[1641271065770,34.327,168.01,168.0,8.31e-05]
[1641271071699,32.3724423,168.01,168.0,8.31e-05]
[1641271091428,31.8724423,168.01,168.0,8.31e-05]
[1641271093629,32.3724423,168.01,168.0,8.31e-05]
[1641271095634,39.7814423,168.01,168.0,8.31e-05]
[1641271096033,155.7007423,168.01,168.0,8.31e-05]
[1641271096438,162.8429523,168.01,168.0,8.31e-05]
[1641271096841,164.26964598,168.01,168.0,8.31e-05]
[1641271097340,67.0,168.0,167.93,1.2204844]
[1641271097541,15.70221,167.99,167.93,1.2204844]
[1641271097742,33.8613327,167.97,167.93,1.2204844]
[1641271097939,34.8217,167.96,167.93,1.2204844]
[1641271098340,35.5817,167.96,167.93,1.2204844]
[1641271101948,50.0,167.95,167.91,0.02]
[1641271102147,8.56,167.94,167.91,0.02]
[1641271102444,9.06,167.94,167.91,0.02]
[1641271102646,24.1139,167.93,167.91,0.02]
[1641271102845,8.56,167.92,167.91,0.02]
[1641271103045,35.62696778,167.92,167.91,0.02]
[1641271103245,36.12696778,167.92,167.91,0.02]
[1641271104264,2.93692286,167.91,167.84,18.0946185]
[1641271104467,12.25692286,167.91,167.9,0.02]
[1641271106268,12.25692286,167.91,167.84,18.0946185]
[1641271109268,9.06,167.91,167.84,18.0946185]
[1641271109470,9.06,167.91,167.84,18.3546185]
[1641271110270,11.79068154,167.91,167.84,18.0946185]
[1641271111271,12.05068154,167.91,167.84,18.0946185]
[1641271111872,12.05068154,167.91,167.84,18.3546185]
[1641271119686,24.1139,167.93,167.84,19.78131218]
[1641271119886,24.6139,167.93,167.84,43.35411218]
[1641271120684,2.23858327,167.92,167.84,43.35411218]
[1641271122894,30.03455963,167.94,167.84,43.35411218]
[1641271123093,30.79455963,167.94,167.84,43.35411218]
[1641271123295,39.35455963,167.94,167.84,43.35411218]
[1641271124097,2.90463459,167.93,167.84,43.35411218]
[1641271125096,2.90463459,167.93,167.84,61.67929577]
[1641271125297,2.90463459,167.93,167.84,43.09411218]
[1641271125695,3.40463459,167.93,167.84,43.09411218]
[1641271125897,3.40463459,167.93,167.84,41.6674185]
[1641271126497,3.66463459,167.93,167.84,41.9274185]
[1641271127098,3.40463459,167.93,167.84,41.9274185]
[1641271127297,3.66463459,167.93,167.84,41.9274185]
[1641271127698,27.48473459,167.93,167.84,41.9274185]
[1641271128300,27.22473459,167.93,167.84,41.9274185]
[1641271128701,3.40463459,167.93,167.84,41.9274185]
[1641271129914,3.66463459,167.93,167.84,41.9274185]
[1641271130713,3.66463459,167.93,167.84,41.6674185]
[1641271131117,8.56,167.92,167.84,41.6674185]
[1641271131317,32.928,167.92,167.84,41.6674185]
[1641271131515,33.688,167.92,167.84,41.6674185]
[1641271132118,33.688,167.92,167.84,41.9274185]
[1641271132920,33.688,167.92,167.91,1.0768465]
[1641271135120,9.06,167.92,167.91,1.0768465]
[1641271136622,9.06,167.92,167.91,4.65e-05]
[1641271137521,32.2282,167.92,167.91,4.65e-05]
[1641271142327,32.2282,167.92,167.9,0.02]
[1641271147534,18.0946185,167.84,167.77,0.50652796]
[1641271147735,2.4510232,167.83,167.77,0.50652796]
[1641271148040,8.56,167.82,167.77,0.50652796]
[1641271148463,23.81700645,167.81,167.77,0.50652796]
[1641271148742,32.37700645,167.81,167.77,0.50652796]
[1641271149037,33.13700645,167.81,167.77,0.50652796]
[1641271150140,7.14221,167.8,167.77,0.50652796]
[1641271150337,8.56,167.79,167.77,0.50652796]
[1641271150542,8.82,167.79,167.77,0.50652796]
[1641271150739,16.46221,167.79,167.77,0.50652796]
[1641271151140,16.46221,167.79,167.78,6.06439992]
[1641271151342,9.32,167.79,167.78,6.06439992]
[1641271151539,40.32,167.79,167.77,0.50652796]
[1641271153438,9.32,167.79,167.77,0.50652796]
[1641271158252,9.32,167.79,167.76,0.057693]
[1641271158253,33.0,167.77,167.76,0.057693]
[1641271158450,44.49379779,167.77,167.64,22.8318]
[1641271158651,44.99379779,167.77,167.58,22.6644]
[1641271158847,49.567,167.76,167.58,22.6644]
[1641271159048,32.00511813,167.75,167.58,147.34272481]
[1641271159249,22.6662,167.74,167.59,73.6969]
[1641271159449,8.56,167.73,167.59,73.6969]
[1641271159851,24.4431,167.72,167.59,73.6969]
[1641271160050,11.28112846,167.71,167.59,73.6969]
[1641271160251,24.7777,167.7,167.59,73.6969]
[1641271160447,33.8377,167.7,167.59,73.6969]
[1641271160649,24.25365729,167.69,167.59,73.6969]
[1641271161950,24.25365729,167.69,167.59,73.9569]
[1641271162351,24.25365729,167.69,167.59,73.6969]
[1641271163778,24.25365729,167.69,167.59,73.9569]
[1641271163980,8.56,167.7,167.59,73.9569]
[1641271164981,31.5276,167.75,167.59,75.38359368]
[1641271165181,31.5276,167.75,167.61,24.55831761]
[1641271165383,32.0276,167.75,167.62,23.0557]
[1641271165580,32.0276,167.75,167.62,24.74239368]
[1641271165581,8.56,167.75,167.62,24.74239368]
[1641271165983,2.59883167,167.74,167.63,1.42669368]
[1641271166583,2.59883167,167.74,167.63,1.68669368]
[1641271166782,24.10116164,167.72,167.62,23.0557]
[1641271166985,24.36116164,167.72,167.62,23.0557]
[1641271167186,24.86116164,167.72,167.62,23.0557]
[1641271168487,24.60116164,167.72,167.62,23.3157]
[1641271169592,24.86116164,167.72,167.62,23.3157]
[1641271171296,24.86116164,167.72,167.62,24.48239368]
[1641271171493,8.56,167.71,167.62,1.42669368]
[1641271171695,38.8866,167.71,167.59,75.12359368]
[1641271171895,39.6466,167.71,167.57,0.02]
[1641271172093,39.6466,167.71,167.58,262.8]
[1641271173193,1.3098,167.7,167.58,262.8]
[1641271173394,2.96028222,167.68,167.58,262.8]
[1641271173692,8.56,167.67,167.58,262.8]
[1641271173896,9.06,167.67,167.58,262.8]
[1641271174094,9.32,167.67,167.58,262.8]
[1641271176794,9.32,167.67,167.58,263.06]
[1641271176994,9.32,167.67,167.58,262.8]
[1641271179897,116.32,167.67,167.58,262.8]
[1641271180095,116.32,167.67,167.56,24.91003002]
[1641271180296,165.1715,167.67,167.48,123.2943]
[1641271180496,1.3097,167.66,167.49,1.349]
[1641271180697,8.56,167.65,167.49,2.77569368]
[1641271180899,9.06,167.65,167.49,3.03569368]
[1641271181098,22.9282,167.64,167.49,0.26]
[1641271181301,35.25981126,167.63,167.48,73.758]
[1641271181500,2.54879466,167.62,167.47,22.65700284]
[1641271181701,8.56,167.61,167.47,22.65700284]
[1641271181899,19.479,167.61,167.47,22.65700284]
[1641271182099,21.16569368,167.61,167.42,75.8002]
[1641271182398,50.7104,167.6,167.43,96.2365]
[1641271182699,8.56,167.59,167.43,96.2365]
[1641271182898,22.5441,167.58,167.43,96.2365]
[1641271183098,34.19511479,167.57,167.43,96.2365]
[1641271183298,2.53645197,167.55,167.43,96.2365]
[1641271183499,8.56,167.54,167.43,72.3177]
[1641271183897,9.32,167.54,167.4,0.02]
[1641271184203,33.8917,167.54,167.44,1.42669368]
[1641271184398,26.10694442,167.53,167.44,1.42669368]
[1641271184599,8.56,167.52,167.44,1.42669368]
[1641271185000,8.82,167.52,167.44,1.42669368]
[1641271185199,8.82,167.52,167.41,1.42669368]
[1641271185398,9.32,167.52,167.41,1.42669368]
[1641271186900,9.32,167.52,167.4,76.1437]
[1641271187701,9.32,167.52,167.4,77.57039368]
[1641271188702,9.32,167.52,167.4,77.83039368]
[1641271189106,33.6293,167.52,167.4,77.83039368]
[1641271190132,33.6293,167.52,167.35,46.2775]
[1641271190333,62.4043,167.52,167.35,46.2775]
[1641271190738,1.42669368,167.51,167.35,46.2775]
[1641271190935,2.17416017,167.49,167.35,46.2775]
[1641271191134,8.56,167.48,167.35,46.2775]
[1641271191334,9.06,167.48,167.35,47.70419368]
[1641271191535,9.32,167.48,167.35,47.70419368]
[1641271191942,32.1606,167.48,167.35,46.2775]
[1641271192337,108.42669368,167.47,167.26,8.56]
[1641271192536,8.56,167.46,167.29,0.02]
[1641271192736,12.64389368,167.46,167.29,0.02]
[1641271192936,5.0,167.42,167.29,0.02]
[1641271193137,32.49432277,167.4,167.29,0.02]
[1641271193335,8.56,167.39,167.29,0.02]
[1641271193535,8.82,167.39,167.29,0.02]
[1641271193736,9.32,167.39,167.29,0.02]
[1641271194336,9.32,167.39,167.26,76.5136]
[1641271195938,9.32,167.39,167.26,76.7736]
[1641271196139,9.06,167.39,167.28,24.50852706]
[1641271196538,9.06,167.39,167.29,1.42669368]
[1641271197144,8.56,167.39,167.29,1.42669368]
[1641271197339,8.56,167.39,167.29,1.68669368]
[1641271197538,8.56,167.39,167.29,1.42669368]
[1641271197740,8.56,167.39,167.3,1.42669368]
[1641271198142,8.82,167.39,167.3,1.42669368]
[1641271198341,9.32,167.39,167.3,1.42669368]
[1641271198741,9.32,167.39,167.27,1.42669368]
[1641271198943,14.684,167.39,167.26,76.5336]
[1641271199645,6.20708123,167.38,167.26,76.5336]
[1641271199842,26.57197488,167.36,167.26,76.5336]
[1641271200042,8.56,167.35,167.26,0.02]
[1641271200243,2.63537271,167.34,167.22,32.21156647]
[1641271200443,8.56,167.33,167.26,1.42669368]
[1641271200843,9.06,167.33,167.26,1.42669368]
[1641271201641,30.64653216,167.32,167.26,1.42669368]
[1641271202042,30.90653216,167.32,167.26,1.42669368]
[1641271202542,30.90653216,167.32,167.22,1.44669368]
[1641271202945,30.90653216,167.32,167.22,1.70669368]
[1641271204343,30.90653216,167.32,167.22,1.68669368]
[1641271204848,30.90653216,167.32,167.22,1.42669368]
[1641271205046,8.56,167.31,167.19,73.8781]
[1641271205447,9.32,167.31,167.19,73.8781]
[1641271205847,9.32,167.31,167.17,0.02]
[1641271206046,49.411,167.3,167.23,93.7]
[1641271206250,31.60559122,167.28,167.23,93.7]
[1641271206445,8.56,167.27,167.23,93.7]
[1641271206945,9.32,167.27,167.23,93.7]
[1641271209948,9.06,167.27,167.23,93.7]
[1641271210154,9.06,167.27,167.16,29.97186826]
[1641271210349,9.06,167.27,167.18,0.26]
[1641271210549,9.06,167.27,167.17,1.42669368]
[1641271210849,9.06,167.27,167.19,1.42669368]
[1641271211048,2.37014909,167.26,167.19,1.42669368]
[1641271211249,10.93014909,167.26,167.19,1.42669368]
[1641271211449,11.69014909,167.26,167.19,1.42669368]
[1641271212555,11.43014909,167.26,167.15,0.02]
[1641271212948,11.43014909,167.26,167.16,1.42669368]
[1641271213957,11.69014909,167.26,167.16,1.42669368]
[1641271216754,17.89439022,167.26,167.16,1.42669368]
[1641271218558,17.39439022,167.26,167.16,1.42669368]
[1641271219664,14.76424113,167.26,167.16,20.44657488]
[1641271219857,8.56,167.26,167.16,20.70657488]
[1641271220061,25.06587344,167.28,167.17,1.42669368]
[1641271220558,25.06587344,167.28,167.17,1.68669368]
[1641271220758,27.64892476,167.28,167.17,1.68669368]
[1641271220959,27.90892476,167.28,167.18,1.42669368]
[1641271221159,28.40892476,167.28,167.18,1.42669368]
[1641271221359,25.82587344,167.28,167.18,1.68669368]
[1641271221759,8.56,167.29,167.19,1.42669368]
[1641271221959,8.56,167.29,167.19,1.68669368]
[1641271222361,2.53474639,167.28,167.2,1.42669368]
[1641271222760,31.8093283,167.28,167.2,1.42669368]
[1641271223064,32.0693283,167.28,167.2,1.42669368]
[1641271223261,0.26,167.28,167.2,1.42669368]
[1641271223497,1.251,167.32,167.2,1.68669368]
[1641271223669,8.56,167.33,167.2,7.94369368]
[1641271223863,24.7779,167.34,167.2,16.50369368]
[1641271223864,0.5,167.32,167.2,16.50369368]
[1641271224064,0.5,167.32,167.21,1.42669368]
[1641271224262,3.28260749,167.32,167.22,24.44099163]
[1641271224468,29.17824803,167.34,167.22,24.70099163]
[1641271224662,10.08522268,167.37,167.23,1.42669368]
[1641271224863,10.08522268,167.37,167.23,89.74359368]
[1641271224864,0.5,167.37,167.23,89.74359368]
[1641271225064,0.5,167.37,167.23,91.28689368]
[1641271225262,11.42772268,167.4,167.24,1.42669368]
[1641271225465,2.92886586,167.39,167.24,6.67169368]
[1641271225666,25.57392417,167.39,167.24,6.67169368]
[1641271225862,25.57392417,167.39,167.25,1.42669368]
[1641271225863,0.30699097,167.36,167.25,1.42669368]
[1641271226063,8.56,167.36,167.25,1.42669368]
[1641271226267,8.56,167.36,167.19,8.56]
[1641271226463,9.06,167.36,167.19,8.56]
[1641271226667,1.52522268,167.32,167.19,8.56]
[1641271226863,2.54033026,167.31,167.2,30.73851457]
[1641271227264,2.80033026,167.31,167.2,30.73851457]
[1641271227563,3.30033026,167.31,167.2,30.99851457]
[1641271228365,1.3236,167.34,167.2,30.99851457]
[1641271228565,1.52522268,167.36,167.21,8.56]
[1641271228964,1.52522268,167.36,167.21,10.24669368]
[1641271229166,1.52522268,167.36,167.22,1.42669368]
[1641271229365,3.70602457,167.36,167.24,18.38513629]
[1641271229565,3.70602457,167.36,167.25,8.56]
[1641271229966,2.18080189,167.36,167.25,8.82]
[1641271231066,2.44080189,167.36,167.25,8.82]
[1641271231667,2.44080189,167.36,167.25,0.26]
[1641271231867,8.56,167.35,167.25,0.26]
[1641271232069,22.5311863,167.34,167.24,0.26]
[1641271232270,31.0911863,167.34,167.24,0.26]
[1641271232472,31.8511863,167.34,167.21,24.346]
[1641271233172,31.8511863,167.34,167.22,30.91064867]
[1641271233972,31.8511863,167.34,167.21,24.086]
[1641271234373,31.8511863,167.34,167.17,79.4406]
[1641271234572,24.2612,167.33,167.17,79.4406]
[1641271234774,8.56,167.32,167.17,79.4406]
[1641271235073,28.03849655,167.3,167.16,0.02]
[1641271235273,8.56,167.29,167.16,0.02]
[1641271235474,8.82,167.29,167.16,0.02]
[1641271235772,9.32,167.29,167.16,0.02]
[1641271235976,23.3163,167.28,167.16,0.02]
[1641271236173,8.56,167.27,167.13,30.63685507]
[1641271236374,27.67749633,167.26,167.13,30.63685507]
[1641271236575,8.56,167.25,167.13,32.06354875]
[1641271236876,2.61161084,167.24,167.13,32.06354875]
[1641271237174,2.87161084,167.24,167.13,32.06354875]
[1641271237381,2.61161084,167.24,167.13,32.06354875]
[1641271237778,2.87161084,167.24,167.13,32.06354875]
[1641271239800,8.56,167.27,167.13,32.06354875]
[1641271239999,1.296,167.29,167.13,40.62354875]
[1641271240404,1.796,167.29,167.13,40.62354875]
[1641271240604,1.796,167.29,167.1,24.8414]
[1641271240605,82.30698867,167.28,167.1,1.42669368]
[1641271240805,2.99113703,167.2,167.1,1.42669368]
[1641271241005,115.56,167.19,167.07,6.389163]
[1641271241407,117.74669368,167.19,167.07,6.389163]
[1641271241605,29.69681634,167.18,167.07,6.389163]
[1641271241805,8.56,167.17,167.07,6.389163]
[1641271242004,8.82,167.17,167.07,6.389163]
[1641271242209,9.32,167.17,167.07,6.389163]
[1641271242606,10.84522268,167.17,167.07,6.389163]
[1641271244007,1.52522268,167.16,167.07,6.389163]
[1641271244216,8.56,167.15,167.07,6.389163]
[1641271244413,31.66840844,167.14,167.07,6.389163]
[1641271244710,8.56,167.13,167.07,6.389163]
[1641271244909,9.06,167.13,167.07,6.389163]
[1641271245111,9.32,167.13,167.07,6.389163]
[1641271245712,8.82,167.13,167.07,6.389163]
[1641271246013,8.56,167.13,167.07,6.389163]
[1641271246417,8.56,167.13,167.08,25.02369446]
[1641271246816,2.76070198,167.12,167.07,6.389163]
[1641271247017,8.56,167.11,167.07,6.389163]
[1641271253443,2.76437316,167.14,167.07,6.389163]
[1641271253842,3.26437316,167.14,167.07,6.389163]
[1641271257146,2.76437316,167.14,167.07,6.389163]
[1641271257350,3.26437316,167.14,167.07,6.389163]
[1641271257949,2.76437316,167.14,167.07,6.389163]
[1641271258349,9.9345,167.17,167.07,6.389163]
[1641271258552,10.1945,167.17,167.07,6.389163]
[1641271258752,10.6945,167.17,167.07,6.389163]
[1641271259354,2.59035774,167.16,167.07,6.389163]
[1641271259659,8.56,167.15,167.07,6.389163]
[1641271259854,9.06,167.15,167.07,6.389163]
[1641271260055,9.32,167.15,167.07,6.389163]
[1641271261456,116.32,167.15,167.07,6.389163]
[1641271261660,6.20413382,167.14,167.07,6.389163]
[1641271261859,8.56,167.13,167.07,6.389163]
[1641271262059,8.82,167.13,167.07,6.389163]
[1641271262261,9.32,167.13,167.07,6.389163]
[1641271263260,8.56,167.13,167.07,6.389163]
[1641271263459,1.52522268,167.14,167.07,6.389163]
[1641271263659,1.52522268,167.14,167.08,1.42669368]
[1641271263858,1.52522268,167.14,167.09,21.61512394]
[1641271264262,1.52522268,167.14,167.1,1.42669368]
[1641271264461,1.52522268,167.14,167.07,6.389163]
[1641271264660,11.15035774,167.16,167.07,6.389163]
[1641271264859,11.65035774,167.16,167.07,6.389163]
[1641271265060,11.65035774,167.16,167.07,7.81585668]
[1641271265264,11.91035774,167.16,167.07,33.40575165]
[1641271265463,9.32,167.16,167.07,33.40575165]
[1641271266462,9.06,167.16,167.07,33.40575165]
[1641271267666,9.06,167.16,167.07,31.97905797]
[1641271267872,9.32,167.16,167.07,33.40575165]
[1641271268503,8.82,167.16,167.07,33.40575165]
[1641271268679,9.32,167.16,167.07,33.40575165]
[1641271268868,8.82,167.16,167.07,33.66575165]
[1641271269370,8.56,167.16,167.07,33.66575165]
[1641271269969,2.33278789,167.18,167.07,33.66575165]
[1641271270369,2.33278789,167.18,167.07,32.23905797]
[1641271270570,2.83278789,167.18,167.07,32.23905797]
[1641271270772,2.83278789,167.18,167.07,33.66575165]
[1641271270973,11.65278789,167.18,167.07,33.66575165]
[1641271271574,10.89278789,167.18,167.07,33.66575165]
[1641271273174,8.56,167.18,167.07,33.66575165]
[1641271273475,33.5502,167.23,167.07,42.22575165]
[1641271273874,34.0502,167.23,167.07,42.22575165]
[1641271274276,2.88424739,167.22,167.07,42.22575165]
[1641271274777,3.38424739,167.22,167.07,42.22575165]
[1641271275575,11.94424739,167.22,167.07,42.22575165]
[1641271276001,12.20424739,167.22,167.07,42.22575165]
[1641271277578,8.56,167.22,167.07,42.22575165]
[1641271277879,1.2451,167.26,167.07,42.22575165]
[1641271278080,375.24756752,167.28,167.08,24.6442]
[1641271278279,352.70286752,167.28,167.09,9.9362]
[1641271278479,2.46418906,167.27,167.09,11.36289368]
[1641271278679,2.46418906,167.27,167.09,11.62289368]
[1641271278881,2.46418906,167.27,167.1,26.09209368]
[1641271279079,2.46418906,167.27,167.11,8.56]
[1641271279282,2.46418906,167.27,167.11,9.98669368]
[1641271279480,2.46418906,167.27,167.11,10.24669368]
[1641271279682,2.46418906,167.27,167.12,1.42669368]
[1641271279879,2.46418906,167.27,167.12,9.98669368]
[1641271280281,2.46418906,167.27,167.13,1.42669368]
[1641271280481,2.72418906,167.27,167.14,23.53375589]
[1641271280881,8.56,167.29,167.15,1.42669368]
[1641271281084,9.8552,167.31,167.15,15.65869368]
[1641271281482,9.06,167.31,167.16,1.42669368]
[1641271281682,9.06,167.31,167.16,9.98669368]
[1641271281882,2.68701144,167.3,167.16,10.24669368]
[1641271282082,2.68701144,167.3,167.17,1.42669368]
[1641271282286,2.68701144,167.3,167.17,9.98669368]
[1641271282484,2.68701144,167.3,167.17,10.24669368]
[1641271282683,2.68701144,167.3,167.18,1.42669368]
[1641271282884,2.68701144,167.3,167.19,8.56]
[1641271283086,2.68701144,167.3,167.19,8.82]
[1641271283286,2.68701144,167.3,167.2,1.42669368]
[1641271283512,2.68701144,167.3,167.21,25.58989497]
[1641271283715,2.68701144,167.3,167.2,1.68669368]
[1641271283912,2.94701144,167.3,167.17,8.56]
[1641271284513,2.94701144,167.3,167.15,0.02]
[1641271284713,34.62638719,167.3,167.15,26.27908337]
[1641271284917,34.36638719,167.3,167.15,26.27908337]
[1641271285113,34.62638719,167.3,167.15,26.27908337]
[1641271285313,34.62638719,167.3,167.15,27.70577705]
[1641271285513,35.12638719,167.3,167.15,27.70577705]
[1641271285714,35.12638719,167.3,167.15,27.96577705]
[1641271286013,22.5445,167.29,167.15,27.96577705]
[1641271286214,22.5445,167.29,167.15,36.50577705]
[1641271286412,23.0445,167.29,167.15,36.50577705]
[1641271286613,22.5445,167.29,167.15,36.50577705]
[1641271287013,0.5,167.29,167.15,36.50577705]
[1641271287615,3.18701144,167.3,167.15,36.50577705]
[1641271288015,22.84496185,167.29,167.15,36.50577705]
[1641271288414,23.34496185,167.29,167.15,36.50577705]
[1641271289816,22.84496185,167.29,167.15,36.50577705]
[1641271292822,23.34496185,167.29,167.15,36.50577705]
[1641271294123,23.34496185,167.29,167.15,1.68669368]
[1641271294124,23.60496185,167.29,167.15,1.68669368]
[1641271294324,8.56,167.28,167.15,0.26]
[1641271294524,10.0623,167.28,167.14,24.5267]
[1641271294725,1.42669368,167.27,167.13,74.0765]
[1641271294924,8.56,167.26,167.08,9.8909]
[1641271295125,8.56,167.26,167.11,26.39411472]
[1641271295323,9.32,167.26,167.11,26.39411472]
[1641271295725,24.4832,167.25,167.11,26.39411472]
[1641271295925,10.86026757,167.24,167.11,26.39411472]
[1641271296126,22.77528446,167.22,167.11,26.39411472]
[1641271296325,31.33528446,167.22,167.11,26.39411472]
[1641271296525,31.83528446,167.22,167.11,26.39411472]
[1641271297126,32.09528446,167.22,167.11,26.39411472]
[1641271297328,31.83528446,167.22,167.11,26.39411472]
[1641271297927,9.06,167.22,167.11,26.39411472]